bitfinex/quotes_SOLUSD_20251201
["timestamp","ask_amount","ask_price","bid_price","bid_amount"]
[1764628294918,0.1,126.88,126.86,7.88270534]
[1764628295298,0.1,126.88,126.86,8.59270534]
[1764628296120,0.1,126.89,126.87,0.71]
[1764628296300,0.1,126.89,126.88,2.48724583]
[1764628296500,0.1,126.89,126.87,57.50610983]
[1764628296698,2.58724583,126.89,126.87,55.018864]
[1764628296910,0.1,126.89,126.87,55.018864]
[1764628297115,0.1,126.89,126.88,0.71]
[1764628298114,11.97724583,126.89,126.84,54.308864]
[1764628298316,2.48724583,126.88,126.85,0.71]
[1764628299324,9.49,126.89,126.85,0.71]
[1764628299325,17.37088489,126.89,126.85,0.71]
[1764628299528,0.14216157,126.85,126.74,1.99999999]
[1764628299831,0.14216157,126.85,126.79,0.71]
[1764628299832,2.48724583,126.83,126.79,0.71]
[1764628300023,11.20724583,126.84,126.79,3.19724583]
[1764628300325,11.87724583,126.84,126.8,7.88643533]
[1764628300536,2.48724583,126.83,126.8,8.59643533]
[1764628300702,2.48724583,126.83,126.81,0.71]
[1764628303611,2.48724583,126.83,126.81,8.59565394]
[1764628305405,11.20724583,126.84,126.82,0.71]
[1764628305614,11.20724583,126.84,126.82,8.59490446]
[1764628307821,11.20724583,126.84,126.8,27.60195504]
[1764628307822,2.48724583,126.83,126.8,27.60195504]
[1764628308022,2.48724583,126.83,126.81,0.71]
[1764628310422,6.90778669,126.83,126.82,7.88519161]
[1764628314646,8.72,126.84,126.82,8.59519161]
[1764628315022,6.90778669,126.85,126.83,0.71]
[1764628317221,6.90778669,126.85,126.84,7.88394828]
[1764628318249,7.59778669,126.86,126.84,7.88394828]
[1764628318548,15.62778669,126.87,126.85,0.71]
[1764628319306,15.62778669,126.87,126.85,8.59306868]
[1764628319516,8.72,126.87,126.85,8.59306868]
[1764628319739,8.72,126.87,126.86,0.71]
[1764628320048,0.1,126.89,126.86,0.71]
[1764628320217,7.00778669,126.89,126.86,0.71]
[1764628321453,0.1,126.89,126.87,7.88208402]
[1764628321829,0.1,126.89,126.87,45.88208402]
[1764628322034,0.1,126.89,126.88,0.71]
[1764628322750,7.69778669,126.89,126.87,45.88208402]
[1764628322961,6.90778669,126.88,126.87,45.88208402]
[1764628323762,6.90778669,126.88,126.83,46.32916365]
[1764628323763,15.47924948,126.88,126.82,8.59519161]
[1764628323923,6.90778669,126.85,126.82,8.59519161]
[1764628324128,6.90778669,126.85,126.82,44.61703463]
[1764628324333,6.90778669,126.85,126.83,0.71]
[1764628324927,6.90778669,126.86,126.83,0.71]
[1764628325524,6.90778669,126.84,126.82,7.88519161]
[1764628325728,6.90778669,126.83,126.82,7.88519161]
[1764628326461,7.59778669,126.83,126.76,0.71]
[1764628326748,6.90778669,126.81,126.77,27.60905576]
[1764628326962,15.62778669,126.81,126.77,43.91791976]
[1764628327166,16.31778669,126.81,126.77,44.62791976]
[1764628327339,16.31778669,126.81,126.78,0.71]
[1764628327725,16.31778669,126.81,126.79,7.88705733]
[1764628328428,15.62778669,126.81,126.79,7.88705733]
[1764628328628,15.62778669,126.81,126.79,8.59705733]
[1764628330335,8.72,126.81,126.8,0.71]
[1764628330537,8.72,126.81,126.79,8.59705733]
[1764628332361,8.72,126.81,126.79,0.67]
[1764628333231,8.72,126.81,126.79,38.67]
[1764628333433,11.20714281,126.81,126.8,7.88643533]
[1764628334956,11.89714281,126.81,126.79,38.0]
[1764628335165,3.17714281,126.8,126.78,7.8874735]
[1764628335354,2.48714281,126.79,126.78,7.8874735]
[1764628336159,2.48714281,126.79,126.77,24.19702484]
[1764628336460,2.48714281,126.78,126.77,24.19702484]
[1764628337557,2.48714281,126.78,126.77,7.88816084]
[1764628339254,2.48714281,126.79,126.77,8.55816084]
[1764628340037,8.72,126.81,126.78,0.67]
[1764628340254,2.48714281,126.79,126.77,27.60891496]
[1764628340441,2.48714281,126.79,126.77,28.27891496]
[1764628340645,3.17714281,126.8,126.77,28.27891496]
[1764628340840,2.48714281,126.8,126.77,28.27891496]
[1764628341046,3.17714281,126.8,126.77,28.27891496]
[1764628341758,2.48714281,126.83,126.78,0.67]
[1764628341966,2.48714281,126.82,126.78,0.67]
[1764628342360,3.17714281,126.82,126.78,0.67]
[1764628342871,2.48714281,126.81,126.79,27.60470067]
[1764628343253,2.48714281,126.81,126.79,28.27470067]
[1764628344252,2.48714281,126.82,126.79,28.27470067]
[1764628344563,2.48714281,126.82,126.8,0.67]
[1764628345068,24.33442623,126.85,126.8,0.67]
[1764628345239,2.48714281,126.86,126.81,2.48714281]
[1764628345442,3.17714281,126.86,126.82,0.67]
[1764628346080,8.72,126.87,126.82,19.46600681]
[1764628346369,12.6030971,126.87,126.83,7.88456989]
[1764628346544,12.6030971,126.87,126.83,8.55456989]
[1764628346745,12.6030971,126.87,126.84,0.67]
[1764628347171,8.72,126.87,126.84,0.67]
[1764628347967,8.72,126.87,126.84,4.5530971]
[1764628348140,8.72,126.87,126.84,0.67]
[1764628348337,8.72,126.87,126.86,7.88270534]
[1764628348755,8.72,126.87,126.86,8.55270534]
[1764628348959,8.72,126.87,126.86,7.88270534]
[1764628349567,0.79,126.89,126.86,8.55270534]
[1764628349866,0.1,126.89,126.86,8.55270534]
[1764628350046,0.1,126.89,126.87,0.67]
[1764628350681,0.1,126.89,126.86,28.2594687]
[1764628350849,0.1,126.89,126.87,0.67]
[1764628352078,4.5730971,126.88,126.85,7.88311846]
[1764628352247,0.69,126.88,126.85,28.26143536]
[1764628352450,4.5730971,126.88,126.85,28.26143536]
[1764628352861,3.8830971,126.88,126.85,28.26143536]
[1764628354778,4.5630971,126.88,126.85,28.26143536]
[1764628355485,3.8830971,126.88,126.85,28.26143536]
[1764628355982,3.8830971,126.86,126.83,27.5945394]
[1764628356186,3.8830971,126.88,126.83,32.1776365]
[1764628356353,3.8830971,126.88,126.85,7.88332676]
[1764628356552,4.5630971,126.88,126.85,7.88332676]
[1764628356749,3.9830971,126.89,126.85,28.29164366]
[1764628356951,0.1,126.89,126.86,0.7]
[1764628357381,3.9830971,126.89,126.86,0.7]
[1764628357585,0.1,126.89,126.86,0.7]
[1764628357875,0.1,126.89,126.86,4.5830971]
[1764628358080,0.1,126.89,126.86,0.7]
[1764628358263,0.1,126.89,126.87,0.7]
[1764628358655,0.1,126.89,126.88,7.88146279]
[1764628359471,0.1,126.89,126.88,8.58146279]
[1764628360679,0.1,126.89,126.88,7.88146279]
[1764628361873,0.1,126.89,126.88,0.67]
[1764628362074,4.6730971,126.89,126.87,27.58729407]
[1764628362585,4.5730971,126.88,126.87,7.88208402]
[1764628362967,4.6730971,126.89,126.87,7.88208402]
[1764628363785,4.5730971,126.88,126.87,7.88208402]
[1764628363958,0.69,126.88,126.86,45.88255864]
[1764628364157,4.5730971,126.88,126.86,45.88255864]
[1764628365584,4.5730971,126.88,126.86,7.88255864]
[1764628365781,4.5730971,126.87,126.86,7.88255864]
[1764628367081,4.5730971,126.87,126.83,27.59599463]
[1764628367389,3.8830971,126.87,126.83,66.26599463]
[1764628367568,3.8830971,126.87,126.84,0.67]
[1764628368261,3.8830971,126.87,126.85,7.88332676]
[1764628370897,0.69,126.88,126.83,38.0]
[1764628370898,4.5730971,126.86,126.83,38.0]
[1764628371060,3.8830971,126.85,126.83,38.0]
[1764628371265,3.8830971,126.85,126.83,45.88443276]
[1764628371789,3.8830971,126.85,126.83,7.88443276]
[1764628371987,3.8830971,126.85,126.83,8.55443276]
[1764628379399,3.8830971,126.85,126.83,7.88443276]
[1764628379592,4.5730971,126.85,126.83,7.88443276]
[1764628380598,3.8830971,126.85,126.83,7.88443276]
[1764628380992,3.8830971,126.85,126.83,8.55443276]
[1764628381296,8.72,126.86,126.83,27.5958575]
[1764628381497,3.8830971,126.88,126.84,0.67]
[1764628381712,8.82,126.89,126.84,42.5530971]
[1764628381880,3.8830971,126.88,126.84,38.67]
[1764628382081,3.8830971,126.88,126.85,0.67]
[1764628382778,3.8830971,126.88,126.86,7.88270534]
[1764628383603,4.5730971,126.87,126.85,7.88332676]
[1764628383791,3.8830971,126.86,126.85,7.88332676]
[1764628384299,4.5730971,126.87,126.85,7.88332676]
[1764628388804,3.8830971,126.87,126.85,8.55332676]
[1764628389020,4.5730971,126.88,126.85,8.55332676]
[1764628389180,12.7030971,126.89,126.86,0.67]
[1764628389381,13.3930971,126.89,126.86,0.67]
[1764628389914,12.7030971,126.89,126.86,0.67]
[1764628390896,12.7030971,126.89,126.87,7.88208402]
[1764628392985,3.8830971,126.87,126.86,7.88270534]
[1764628394503,4.5730971,126.87,126.84,38.0]
[1764628394798,3.8830971,126.85,126.84,38.0]
[1764628395115,3.8830971,126.85,126.83,8.56431537]
[1764628396410,4.5730971,126.84,126.8,0.68]
[1764628396619,3.8830971,126.83,126.81,8.56580945]
[1764628398398,4.71525867,126.82,126.78,8.5675514]
[1764628398597,4.5730971,126.83,126.78,28.28675001]
[1764628398803,4.5730971,126.83,126.79,0.68]
[1764628399425,3.8830971,126.83,126.79,0.68]
[1764628401419,3.8830971,126.83,126.8,7.88643533]
[1764628401829,4.02525867,126.84,126.81,0.68]
[1764628402018,3.8830971,126.84,126.81,0.68]
[1764628402332,4.5730971,126.84,126.81,0.68]
[1764628403411,3.8830971,126.84,126.82,7.88519161]
[1764628404208,3.8830971,126.84,126.82,8.56519161]
[1764628404628,2.3830971,126.84,126.82,8.56519161]
[1764628405016,2.3830971,126.84,126.82,7.88519161]
[1764628407625,2.3830971,126.84,126.82,8.56519161]
[1764628408433,2.48655113,126.84,126.82,8.56519161]
[1764628409229,2.48655113,126.84,126.82,7.88519161]
[1764628410611,2.48655113,126.84,126.81,8.56581342]
[1764628411512,2.48655113,126.83,126.81,8.56581342]
[1764628412844,2.48655113,126.82,126.8,45.88626369]
[1764628413010,2.48655113,126.81,126.8,46.56626369]
[1764628413210,11.20655113,126.82,126.8,8.56626369]
[1764628413432,11.20655113,126.82,126.8,0.68]
[1764628413741,3.17655113,126.81,126.78,24.1963989]
[1764628413915,3.17655113,126.81,126.78,24.8763989]
[1764628413916,2.48655113,126.79,126.78,24.8763989]
[1764628415629,2.48655113,126.8,126.78,24.8763989]
[1764628416226,3.18655113,126.79,126.75,0.72]
[1764628416433,2.48655113,126.77,126.75,0.72]
[1764628417538,2.48655113,126.77,126.75,8.6093286]
[1764628417837,2.48655113,126.77,126.76,0.72]
[1764628418639,2.48655113,126.77,126.76,8.60892395]
[1764628423745,3.18655113,126.77,126.75,7.88954635]
[1764628423960,3.18655113,126.76,126.75,7.88954635]
[1764628426540,3.18655113,126.76,126.74,27.61499019]
[1764628426752,2.48655113,126.75,126.74,27.61499019]
[1764628428144,2.48655113,126.75,126.74,65.61499019]
[1764628428840,2.48655113,126.75,126.74,45.89016884]
[1764628429821,2.48655113,126.75,126.74,7.89016884]
[1764628432151,2.48655113,126.75,126.74,8.59016884]
[1764628432951,2.48655113,126.75,126.74,7.89016884]
[1764628433148,0.7,126.77,126.74,8.59016884]
[1764628433652,2.48655113,126.76,126.74,8.59016884]
[1764628434445,2.48655113,126.75,126.74,8.59016884]
[1764628435731,2.48655113,126.76,126.74,8.59016884]
[1764628435936,2.48655113,126.76,126.75,0.7]
[1764628437439,2.48655113,126.76,126.74,7.89016884]
[1764628437637,2.48655113,126.76,126.74,8.59016884]
[1764628439961,2.48655113,126.76,126.74,46.59016884]
[1764628441741,2.48655113,126.75,126.74,46.59016884]
[1764628443063,2.48655113,126.76,126.74,46.59016884]
[1764628446157,2.48655113,126.76,126.74,45.89016884]
[1764628446353,2.48655113,126.77,126.75,0.7]
[1764628447753,2.48655113,126.77,126.75,8.58953544]
[1764628449070,3.18655113,126.77,126.75,7.88953544]
[1764628449269,2.48655113,126.76,126.75,7.88953544]
[1764628449770,3.18655113,126.76,126.74,7.8900998]
[1764628449946,9.42,126.75,126.73,7.89065188]
[1764628450152,2.48655113,126.74,126.72,45.89117531]
[1764628450350,2.48655113,126.74,126.71,8.59174186]
[1764628450351,2.48655113,126.73,126.71,8.59174186]
[1764628450547,2.48655113,126.72,126.71,7.89174186]
[1764628450867,0.14216157,126.74,126.71,7.89174186]
[1764628451059,2.48655113,126.72,126.71,8.59174186]
[1764628451566,11.20655113,126.72,126.7,8.7524475]
[1764628451813,3.16655113,126.71,126.7,0.2]
[1764628452273,2.48655113,126.71,126.7,0.2]
[1764628452654,3.3087127,126.71,126.7,0.2]
[1764628452975,0.82216157,126.71,126.7,0.2]
[1764628453277,12.11865762,126.71,126.7,0.2]
[1764628453574,20.01069455,126.71,126.7,0.2]
[1764628454156,0.14216157,126.7,126.69,0.2]
[1764628454350,8.95210649,126.69,126.68,0.2]
[1764628454552,17.67210649,126.69,126.68,0.2]
[1764628454753,18.35210649,126.69,126.68,0.2]
[1764628455278,20.83865762,126.69,126.68,0.2]
[1764628455779,28.73194043,126.69,126.68,0.2]
[1764628461578,26.2453893,126.69,126.68,0.2]
[1764628461890,28.73194043,126.69,126.68,0.2]
[1764628462350,19.24199551,126.69,126.68,0.2]
[1764628462865,19.92199551,126.69,126.68,0.2]
[1764628468390,21.33142956,126.69,126.68,0.2]
[1764628472568,50.34622366,126.69,126.68,0.2]
[1764628472768,8.95210649,126.68,126.66,0.2]
[1764628472971,12.61598518,126.67,126.66,0.2]
[1764628473172,13.27598518,126.67,126.66,0.2]
[1764628475182,20.51051427,126.67,126.66,0.2]
[1764628476506,12.61598518,126.67,126.66,0.2]
[1764628476811,20.51051427,126.67,126.66,0.2]
[1764628477781,21.17051427,126.67,126.66,0.2]
[1764628478708,9.51210649,126.66,126.55,3.89598518]
[1764628478881,9.51210649,126.66,126.54,0.2]
[1764628478882,3.89598518,126.56,126.54,0.2]
[1764628479081,8.78,126.55,126.54,0.89]
[1764628479386,8.78,126.56,126.54,0.89]
[1764628479575,8.78,126.56,126.55,0.69]
[1764628480086,12.67598518,126.56,126.55,0.69]
[1764628481889,8.78,126.56,126.55,0.69]
[1764628483001,12.67598518,126.56,126.55,0.69]
[1764628483795,3.89598518,126.56,126.55,0.72]
[1764628483996,3.89598518,126.56,126.54,8.10258287]
[1764628484306,3.89598518,126.56,126.54,0.2]
[1764628484307,4.59814675,126.55,126.54,0.2]
[1764628484491,0.14216157,126.54,126.53,0.2]
[1764628484682,8.49413193,126.54,126.51,0.2]
[1764628484883,8.49413193,126.54,126.51,0.92]
[1764628484884,3.89598518,126.52,126.51,0.92]
[1764628486909,3.89598518,126.52,126.51,0.2]
[1764628486910,11.94203546,126.52,126.51,0.2]
[1764628487304,8.04605028,126.52,126.51,0.2]
[1764628487490,11.94203546,126.52,126.51,0.2]
[1764628490809,25.20796556,126.52,126.5,0.2]
[1764628490986,17.17197036,126.51,126.47,0.72]
[1764628491182,3.89598518,126.48,126.47,0.72]
[1764628491600,3.89598518,126.48,126.46,0.1]
[1764628491601,7.79197036,126.48,126.46,0.1]
[1764628491910,7.79197036,126.48,126.46,0.82]
[1764628491911,3.89598518,126.47,126.46,0.82]
[1764628493288,8.82,126.49,126.46,8.72718707]
[1764628493489,3.89598518,126.48,126.46,8.72718707]
[1764628493712,12.71598518,126.49,126.47,0.72]
[1764628495612,12.71598518,126.49,126.47,8.62696373]
[1764628495817,3.89598518,126.48,126.47,8.62696373]
[1764628496018,3.89598518,126.48,126.47,7.90696373]
[1764628496213,3.89598518,126.49,126.47,7.90696373]
[1764628496599,3.89598518,126.48,126.47,7.90696373]
[1764628497119,3.89598518,126.48,126.47,8.62696373]
[1764628498012,3.89598518,126.48,126.47,0.72]
[1764628498922,3.89598518,126.48,126.47,8.62701352]
[1764628499124,3.89598518,126.48,126.47,0.72]
[1764628501514,3.89598518,126.49,126.47,8.62701352]
[1764628502027,3.89598518,126.48,126.46,8.72750741]
[1764628502321,0.14216157,126.5,126.46,8.72750741]
[1764628502505,3.89598518,126.47,126.46,8.00750741]
[1764628503103,3.89598518,126.47,126.46,0.1]
[1764628503533,3.89598518,126.48,126.46,0.82]
[1764628505533,3.89598518,126.48,126.46,8.72728241]
[1764628505712,3.89598518,126.48,126.47,0.72]
[1764628508529,3.89598518,126.49,126.47,0.72]
[1764628509237,8.04755519,126.5,126.47,8.62700819]
[1764628509421,3.89598518,126.5,126.47,28.39454199]
[1764628509618,3.89598518,126.5,126.48,0.72]
[1764628510434,12.71598518,126.51,126.48,0.72]
[1764628511428,12.71598518,126.51,126.48,8.62594169]
[1764628512026,12.71598518,126.51,126.49,0.69]
[1764628513731,3.89598518,126.5,126.49,0.69]
[1764628522643,8.82,126.51,126.49,8.5957633]
[1764628522945,3.89598518,126.5,126.49,8.5957633]
[1764628525827,12.71598518,126.51,126.49,8.5957633]
[1764628527039,12.71598518,126.51,126.5,0.69]
[1764628528360,11.31930515,126.51,126.5,0.69]
[1764628530467,8.82,126.51,126.5,8.59513833]
[1764628530633,8.8,126.53,126.5,8.59513833]
[1764628530834,2.49930515,126.56,126.51,0.67]
[1764628531040,2.49930515,126.55,126.51,0.67]
[1764628531662,11.29930515,126.56,126.51,0.67]
[1764628532244,8.8,126.56,126.51,9.47]
[1764628532455,2.49930515,126.57,126.52,27.66361049]
[1764628532652,32.41190688,126.61,126.52,27.66361049]
[1764628532653,8.80994492,126.61,126.52,30.83291564]
[1764628532856,33.12949824,126.62,126.52,30.83291564]
[1764628532857,2.49930515,126.59,126.53,19.47816915]
[1764628533058,2.49930515,126.59,126.54,8.8]
[1764628533335,2.49930515,126.59,126.54,9.47]
[1764628533555,2.49930515,126.59,126.55,0.67]
[1764628534341,8.8,126.6,126.55,0.67]
[1764628534545,2.49930515,126.59,126.56,7.90139064]
[1764628534749,11.29930515,126.6,126.56,7.90139064]
[1764628534961,11.29930515,126.6,126.57,0.67]
[1764628536775,11.29930515,126.6,126.58,7.9001422]
[1764628537084,11.29930515,126.6,126.58,46.5701422]
[1764628537647,11.29930515,126.6,126.59,0.67]
[1764628538566,8.8,126.6,126.59,0.67]
[1764628538853,2.49930515,126.61,126.59,8.56951812]
[1764628539157,2.49930515,126.62,126.59,8.56951812]
[1764628539356,2.49930515,126.62,126.6,0.67]
[1764628541469,2.49930515,126.62,126.6,8.56887578]
[1764628541681,2.49930515,126.62,126.61,0.68]
[1764628544285,3.05930515,126.62,126.6,45.89887578]
[1764628544575,3.05930515,126.61,126.58,45.89982697]
[1764628544756,2.49930515,126.59,126.58,7.89982697]
[1764628545478,2.49930515,126.59,126.58,8.57982697]
[1764628545975,2.49930515,126.59,126.58,7.89982697]
[1764628547881,2.49930515,126.59,126.58,8.57982697]
[1764628548083,2.49930515,126.59,126.58,7.89982697]
[1764628550779,2.49930515,126.59,126.57,46.58059485]
[1764628551081,2.49930515,126.59,126.58,0.68]
[1764628551656,2.49930515,126.59,126.57,46.58059485]
[1764628551856,2.49930515,126.58,126.57,46.58059485]
[1764628554589,2.49930515,126.59,126.57,46.58059485]
[1764628554765,2.49930515,126.59,126.58,0.68]
[1764628556384,2.49930515,126.59,126.58,8.5801422]
[1764628559366,2.49930515,126.59,126.58,0.68]
[1764628559772,2.49930515,126.59,126.58,8.5801422]
[1764628563699,11.27930515,126.6,126.58,8.5801422]
[1764628564294,2.49930515,126.59,126.58,8.5801422]
[1764628565094,2.49930515,126.59,126.58,7.9001422]
[1764628565690,2.49930515,126.59,126.58,8.5801422]
[1764628568298,11.27930515,126.6,126.58,8.5801422]
[1764628568501,11.27930515,126.6,126.59,0.68]
[1764628568802,11.27930515,126.6,126.58,7.9001422]
[1764628568803,11.27930515,126.6,126.58,8.5801422]
[1764628568987,11.27930515,126.6,126.59,0.68]
[1764628570287,11.27930515,126.6,126.59,8.57951812]
[1764628571402,11.27930515,126.6,126.58,7.9001422]
[1764628571605,11.27930515,126.6,126.58,8.5701422]
[1764628572404,11.27930515,126.6,126.59,0.67]
[1764628573711,11.27930515,126.6,126.59,8.56951812]
[1764628575608,2.49930515,126.62,126.59,28.31831344]
[1764628575797,2.49930515,126.61,126.6,0.67]
[1764628577796,2.49930515,126.61,126.6,8.56889415]
[1764628577983,8.76,126.63,126.6,8.56889415]
[1764628578180,2.49930515,126.62,126.61,0.67]
[1764628579611,2.49930515,126.62,126.61,8.56827027]
[1764628580716,8.76,126.63,126.61,8.56827027]
[1764628580900,8.76,126.63,126.62,0.67]
[1764628581100,2.69930515,126.64,126.62,0.67]
[1764628582387,2.69930515,126.64,126.62,8.56738721]
[1764628583206,2.69930515,126.64,126.63,0.67]
[1764628583596,2.69930515,126.64,126.62,8.56738721]
[1764628584886,2.69930515,126.64,126.61,27.64343936]
[1764628585088,2.69930515,126.64,126.63,0.67]
[1764628585913,2.69930515,126.64,126.62,0.67]
[1764628586120,2.69930515,126.64,126.62,8.56720136]
[1764628588215,2.69930515,126.64,126.62,7.89720136]
[1764628588426,0.2,126.64,126.63,0.67]
[1764628588720,2.69930515,126.64,126.63,0.67]
[1764628590530,4.09728443,126.64,126.63,0.67]
[1764628591248,4.09728443,126.64,126.63,8.56702282]
[1764628593816,4.65728443,126.64,126.61,0.7]
[1764628594124,3.89728443,126.62,126.61,8.59823116]
[1764628597636,3.89728443,126.62,126.61,0.7]
[1764628598135,3.89728443,126.62,126.61,8.59827027]
[1764628614554,0.2,126.64,126.62,27.64176275]
[1764628614847,0.2,126.64,126.63,12.63728443]
[1764628615051,0.2,126.64,126.63,9.45]
[1764628615756,0.2,126.64,126.63,17.90274365]
[1764628616363,0.2,126.64,126.63,25.79976647]
[1764628617552,0.2,126.64,126.63,29.6970509]
[1764628617751,4.09728443,126.71,126.64,25.11880892]
[1764628618061,4.09728443,126.71,126.65,12.63728443]
[1764628618359,4.09728443,126.71,126.65,37.07864542]
[1764628618561,4.65728443,126.71,126.66,28.34303331]
[1764628618963,4.65728443,126.71,126.67,0.71]
[1764628620257,4.09728443,126.71,126.67,0.71]
[1764628620463,0.2,126.71,126.68,27.62867066]
[1764628620672,0.2,126.71,126.69,8.74]
[1764628620847,0.2,126.71,126.69,13.54728443]
[1764628621044,0.2,126.71,126.7,0.71]
[1764628621362,0.2,126.73,126.7,4.60728443]
[1764628621861,0.2,126.73,126.71,0.71]
[1764628622563,0.2,126.73,126.72,7.89141414]
[1764628622760,0.2,126.73,126.72,8.60141414]
[1764628625269,0.2,126.74,126.73,16.308864]
[1764628625565,0.2,126.74,126.73,25.758864]
[1764628626260,0.2,126.74,126.73,63.758864]
[1764628627446,0.2,126.74,126.73,75.54693987]
[1764628627945,0.2,126.74,126.73,88.8542243]
[1764628631574,1e-08,126.74,126.73,88.8542243]
[1764628632966,1e-08,126.74,126.73,97.66416922]
[1764628633167,1e-08,126.74,126.73,93.76688479]
[1764628633469,1e-08,126.74,126.73,97.66416922]
[1764628635740,1e-08,126.74,126.73,88.92416922]
[1764628635943,1e-08,126.74,126.73,75.50693987]
[1764628636164,1e-08,126.74,126.73,70.93965544]
[1764628636385,1e-08,126.74,126.73,74.82208576]
[1764628637864,1e-08,126.74,126.73,87.52931511]
[1764628640682,1e-08,126.74,126.73,84.36688479]
[1764628641989,0.2,126.75,126.74,37.99999999]
[1764628642280,0.2,126.75,126.74,38.71999999]
[1764628642952,0.2,126.75,126.74,46.61016883]
[1764628644280,0.2,126.75,126.74,55.35016883]
[1764628646382,0.2,126.75,126.74,59.24745326]
[1764628648580,0.2,126.75,126.74,50.50745326]
[1764628648785,0.2,126.75,126.74,59.24745326]
[1764628650390,0.2,126.75,126.74,57.83786694]
[1764628657567,1e-08,126.75,126.74,57.83786694]
[1764628657799,1e-08,126.75,126.74,66.64781186]
[1764628659767,0.7,126.79,126.76,27.61123382]
[1764628659996,0.7,126.79,126.77,8.74]
[1764628661787,0.7,126.79,126.78,7.88767944]
[1764628664404,0.88,126.81,126.78,45.88767942]
[1764628664607,0.88,126.81,126.78,65.60687803]
[1764628664781,0.68,126.8,126.78,65.60687803]
[1764628666105,0.2,126.81,126.79,8.74]
[1764628666323,0.2,126.81,126.8,7.88643533]
[1764628666605,0.2,126.81,126.8,8.56643533]
[1764628667186,1e-08,126.81,126.8,57.86407834]
[1764628669919,1e-08,126.81,126.8,57.86407834]
[1764628671594,1e-08,126.82,126.81,8.80994492]
[1764628671911,1e-08,126.82,126.81,20.69764303]
[1764628672216,1e-08,126.82,126.81,58.69764301]
[1764628673495,1e-08,126.82,126.81,66.58345643]
[1764628677511,0.2,126.84,126.83,7.88456989]
[1764628677814,0.2,126.84,126.83,54.60456986]
[1764628679410,0.2,126.84,126.83,55.28456986]
[1764628680324,0.2,126.84,126.83,46.56456986]
[1764628680493,0.2,126.84,126.83,17.28456989]
[1764628682312,0.2,126.84,126.83,7.88456989]
[1764628682522,0.88,126.84,126.83,7.88456989]
[1764628682828,3.36769811,126.84,126.83,7.88456989]
[1764628685226,3.36769811,126.84,126.81,27.5988043]
[1764628685423,0.68,126.83,126.81,27.5988043]
[1764628685604,0.68,126.83,126.81,65.59880427]
[1764628689823,3.16769811,126.83,126.81,65.59880427]
[1764628690332,0.68,126.82,126.81,65.59880427]
[1764628691203,2.68769811,126.84,126.81,65.59880427]
[1764628691404,0.67,126.83,126.81,65.59880427]
[1764628692323,0.2,126.84,126.81,66.30880427]
[1764628692515,0.87,126.84,126.81,66.30880427]
[1764628692707,0.87,126.84,126.81,65.59880427]
[1764628692909,0.67,126.83,126.81,65.59880427]
[1764628696246,0.2,126.84,126.82,0.71]
[1764628696531,0.2,126.84,126.82,9.43]
[1764628696730,0.87,126.84,126.82,8.72]
[1764628698344,0.87,126.84,126.83,7.88456989]
[1764628701010,0.87,126.84,126.82,7.88519161]
[1764628701335,0.87,126.84,126.82,49.75562297]
[1764628701733,0.87,126.84,126.82,69.46860199]
[1764628702218,0.2,126.84,126.82,69.46860199]
[1764628703929,0.87,126.84,126.82,68.75860199]
[1764628704827,0.87,126.84,126.82,69.46860199]
[1764628705533,0.2,126.84,126.82,68.75860199]
[1764628705733,0.2,126.84,126.82,69.46860199]
[1764628706038,0.2,126.84,126.83,0.71]
[1764628706635,0.2,126.84,126.83,3.86993206]
[1764628707139,0.2,126.84,126.83,11.75450195]
[1764628710249,0.2,126.84,126.83,49.75450192]
[1764628710544,0.2,126.84,126.83,49.04450192]
[1764628715343,0.2,126.87,126.83,92.3022894]
[1764628715651,0.2,126.87,126.84,0.71]
[1764628716052,0.2,126.87,126.84,3.86943288]
[1764628716231,0.2,126.87,126.85,0.71]
[1764628716729,0.2,126.87,126.86,3.98356831]
[1764628717144,0.2,126.87,126.86,12.57627365]
[1764628717542,0.2,126.87,126.86,11.86627365]
[1764628718225,0.2,126.87,126.86,12.57627365]
[1764628722036,0.2,126.87,126.86,50.57627365]